bitfinex/quotes_BTCUSD_20240728
["timestamp","ask_amount","ask_price","bid_price","bid_amount"]
[1722171487379,0.84585806,68182.0,68181.0,8.976444]
[1722171487779,0.86887946,68182.0,68181.0,8.980444]
[1722171488211,0.84585806,68182.0,68181.0,8.980444]
[1722171488329,0.84585806,68182.0,68181.0,8.982444]
[1722171488848,0.84585806,68182.0,68181.0,8.980444]
[1722171489049,0.84585806,68182.0,68181.0,8.982444]
[1722171489255,0.37596121,68182.0,68181.0,8.978444]
[1722171489445,0.16415755,68182.0,68181.0,8.982444]
[1722171489648,0.04682455,68182.0,68181.0,9.15424512]
[1722171489972,0.117325,68187.0,68186.0,0.31510112]
[1722171490170,0.04675495,68187.0,68186.0,0.31510112]
[1722171490369,0.16407895,68187.0,68186.0,0.31510112]
[1722171491181,0.39872695,68187.0,68186.0,0.31410112]
[1722171491369,0.42174663,68187.0,68186.0,0.31410112]
[1722171492426,0.63328246,68187.0,68186.0,0.31410112]
[1722171492589,0.28131046,68187.0,68186.0,0.31410112]
[1722171492784,0.06966211,68187.0,68186.0,0.43142712]
[1722171492991,0.06966138,68187.0,68186.0,0.66607912]
[1722171493189,0.17950407,68187.0,68186.0,0.66607912]
[1722171493526,0.06966138,68187.0,68186.0,0.66607912]
[1722171493725,0.15754049,68187.0,68186.0,0.66607912]
[1722171494088,0.06966138,68187.0,68186.0,0.66607912]
[1722171494285,0.15754041,68187.0,68186.0,0.67607912]
[1722171494591,0.17950407,68187.0,68186.0,0.67607912]
[1722171494789,0.06966138,68187.0,68186.0,0.67607912]
[1722171494987,0.17936745,68187.0,68186.0,0.67607912]
[1722171495397,0.17936745,68187.0,68186.0,0.44142712]
[1722171495604,0.17959841,68187.0,68186.0,0.44142712]
[1722171495806,0.15657873,68187.0,68186.0,0.44142712]
[1722171496107,0.04669264,68187.0,68186.0,0.44142712]
[1722171496451,0.04669264,68188.0,68186.0,0.29812712]
[1722171496869,0.04669264,68187.0,68186.0,0.29812712]
[1722171497270,0.11831899,68190.0,68189.0,0.31410112]
[1722171497588,0.16400224,68190.0,68189.0,0.31410112]
[1722171497795,0.16500223,68190.0,68189.0,0.31410112]
[1722171497996,0.17954653,68190.0,68189.0,0.31410112]
[1722171498190,0.17854654,68190.0,68189.0,0.31410112]
[1722171498391,0.29686554,68190.0,68189.0,0.32010112]
[1722171498915,0.16500224,68190.0,68189.0,0.32010112]
[1722171499060,0.18802141,68190.0,68189.0,0.32010112]
[1722171499262,0.18802141,68190.0,68189.0,0.1493]
[1722171499263,0.42265941,68190.0,68189.0,0.1493]
[1722171499504,0.42265941,68190.0,68189.0,0.32010112]
[1722171499505,0.50264796,68190.0,68189.0,0.32010112]
[1722171499889,0.50164796,68190.0,68189.0,0.31410112]
[1722171500090,0.26800996,68190.0,68189.0,0.32210112]
[1722171500297,0.31993904,68190.0,68189.0,0.32010112]
[1722171500698,0.18702141,68190.0,68189.0,0.32210112]
[1722171501146,0.18802141,68190.0,68189.0,0.32010112]
[1722171501310,0.42265941,68190.0,68189.0,0.32710112]
[1722171502182,0.4227837,68190.0,68189.0,0.32710112]
[1722171502615,0.42264324,68190.0,68189.0,0.32710112]
[1722171503121,0.50268289,68190.0,68189.0,0.32710112]
[1722171503313,0.42264324,68190.0,68189.0,0.32710112]
[1722171504469,0.39962407,68190.0,68189.0,0.32710112]
[1722171504681,0.352957,68190.0,68189.0,0.32710112]
[1722171504883,0.39973701,68190.0,68189.0,0.32710112]
[1722171505468,0.39975714,68190.0,68189.0,0.32710112]
[1722171507115,0.40075713,68190.0,68189.0,0.32710112]
[1722171507327,0.39975714,68190.0,68189.0,0.32710112]
[1722171507529,0.39975714,68190.0,68189.0,0.1563]
[1722171507730,0.39975714,68190.0,68189.0,0.32710112]
[1722171508742,0.39980921,68190.0,68189.0,0.32710112]
[1722171508968,0.4228287,68190.0,68189.0,0.32710112]
[1722171509271,0.39980921,68190.0,68189.0,0.32710112]
[1722171509863,0.63444721,68190.0,68189.0,0.32710112]
[1722171510982,0.86908521,68190.0,68189.0,0.013]
[1722171511198,0.94912093,68190.0,68189.0,0.013]
[1722171511823,0.97214076,68190.0,68189.0,0.013]
[1722171512329,0.94928979,68190.0,68189.0,0.013]
[1722171514480,0.94929001,68190.0,68189.0,0.013]
[1722171515110,0.97230961,68190.0,68189.0,0.013]
[1722171515876,1.11500961,68190.0,68189.0,0.013]
[1722171516277,1.14198996,68190.0,68189.0,0.013]
[1722171516417,1.16498996,68190.0,68189.0,0.013]
[1722171516618,1.16543579,68190.0,68189.0,0.013]
[1722171519605,1.18845607,68190.0,68189.0,0.013]
[1722171519757,1.16543579,68190.0,68189.0,0.013]
[1722171521620,1.16525003,68190.0,68189.0,0.013]
[1722171522151,1.16525077,68190.0,68189.0,0.013]
[1722171523080,1.18827108,68190.0,68189.0,0.013]
[1722171523328,1.55930916,68190.0,68189.0,0.013]
[1722171523480,1.60210796,68190.0,68189.0,0.013]
[1722171524001,1.57908765,68190.0,68189.0,0.013]
[1722171524199,1.49988877,68190.0,68189.0,0.013]
[1722171524740,1.372571,68190.0,68189.0,0.013]
[1722171524869,1.49997072,68190.0,68189.0,0.013]
[1722171525514,1.26533272,68190.0,68189.0,0.013]
[1722171525929,1.49997072,68190.0,68189.0,0.013]
[1722171527222,1.52299192,68190.0,68189.0,0.013]
[1722171528440,1.49997072,68190.0,68189.0,0.013]
[1722171531400,1.50098134,68190.0,68189.0,0.013]
[1722171531580,1.52400254,68190.0,68189.0,0.013]
[1722171531918,1.52403067,68190.0,68189.0,0.013]
[1722171533210,1.50100947,68190.0,68189.0,0.013]
[1722171534605,1.65124829,68190.0,68189.0,0.013]
[1722171536646,1.67426949,68190.0,68189.0,0.013]
[1722171537736,1.57037106,68190.0,68189.0,0.013]
[1722171537920,1.65108056,68190.0,68189.0,0.013]
[1722171538944,1.73027944,68190.0,68189.0,0.013]
[1722171539346,1.65108056,68190.0,68189.0,0.013]
[1722171539970,1.65008056,68190.0,68189.0,0.007]
[1722171540229,1.65208056,68190.0,68189.0,0.007]
[1722171540603,0.821317,68183.0,68182.0,0.0771]
[1722171541003,0.94893415,68183.0,68182.0,0.0771]
[1722171541408,0.94893337,68183.0,68182.0,0.0771]
[1722171542249,0.94893337,68183.0,68182.0,0.0801]
[1722171542476,0.97195478,68183.0,68182.0,0.0801]
[1722171543244,0.73794867,68183.0,68182.0,0.0831]
[1722171546275,0.88650044,68183.0,68182.0,0.084024]
[1722171546477,0.86347903,68183.0,68182.0,0.084024]
[1722171546905,0.71492726,68183.0,68182.0,0.084024]
[1722171548863,0.86350089,68183.0,68182.0,0.084024]
[1722171549193,0.71492726,68183.0,68182.0,0.084024]
[1722171550439,0.94958926,68183.0,68182.0,0.084024]
[1722171552869,0.821317,68183.0,68182.0,0.084024]
[1722171553071,0.94861956,68183.0,68182.0,0.084024]
[1722171553446,0.94862369,68183.0,68182.0,0.084024]
[1722171553862,0.97164496,68183.0,68182.0,0.084024]
[1722171555058,0.97164496,68183.0,68182.0,0.006924]
[1722171556222,0.9718071,68183.0,68182.0,0.006924]
[1722171558729,0.94878583,68183.0,68182.0,0.006924]
[1722171559512,1.34078302,68183.0,68182.0,0.006924]
[1722171559720,1.33458414,68183.0,68182.0,0.006924]
[1722171560118,1.25648414,68183.0,68182.0,0.085624]
[1722171560324,1.25648414,68183.0,68182.0,0.003924]
[1722171560516,1.69063601,68183.0,68182.0,0.003924]
[1722171560753,1.61343713,68183.0,68182.0,0.003924]
[1722171560954,1.71112825,68183.0,68182.0,0.003924]
[1722171561100,1.79032713,68183.0,68182.0,0.003924]
[1722171561306,1.71112825,68183.0,68182.0,0.000924]
[1722171561686,1.71212825,68183.0,68182.0,0.000924]
[1722171562006,1.63745919,68183.0,68182.0,0.000924]
[1722171562386,1.61443713,68183.0,68182.0,0.000924]
[1722171562592,1.61443362,68183.0,68182.0,0.000924]
[1722171562795,1.6436325,68183.0,68182.0,0.000924]
[1722171563023,1.270079,68183.0,68182.0,0.000924]
[1722171563231,1.39836272,68183.0,68182.0,0.000924]
[1722171563970,1.32026272,68183.0,68182.0,0.000924]
[1722171564324,1.26026272,68183.0,68182.0,0.000924]
[1722171565552,1.28328437,68183.0,68182.0,0.000924]
[1722171565775,1.31248325,68183.0,68182.0,0.000924]
[1722171565981,1.28328437,68183.0,68182.0,0.000924]
[1722171566873,1.26026272,68183.0,68182.0,0.000924]
[1722171568788,1.71857706,68183.0,68182.0,0.000924]
[1722171568942,1.70177818,68183.0,68182.0,0.000924]
[1722171569334,1.5642206,68183.0,68182.0,0.000924]
[1722171569931,1.58724279,68183.0,68182.0,0.000924]
[1722171570152,1.50534867,68183.0,68182.0,0.000924]
[1722171571360,1.72214992,68183.0,68182.0,0.000924]
[1722171572005,1.95681192,68183.0,68182.0,0.000924]
[1722171572212,2.04092237,68183.0,68182.0,0.000924]
[1722171572431,1.96724323,68183.0,68182.0,0.000924]
[1722171572865,1.96725415,68183.0,68182.0,0.000924]
[1722171573070,1.96425415,68183.0,68182.0,0.000924]
[1722171573270,1.96825415,68183.0,68182.0,0.000924]
[1722171573477,1.97225415,68183.0,68182.0,0.000924]
[1722171573674,1.7807474,68183.0,68182.0,0.000924]
[1722171573874,1.57933258,68183.0,68182.0,0.000924]
[1722171574174,2.03205062,68183.0,68182.0,0.002924]
[1722171574376,1.83499458,68183.0,68182.0,0.002924]
[1722171574583,2.03283046,68183.0,68182.0,0.002924]
[1722171574782,2.18309003,68183.0,68182.0,0.002924]
[1722171575002,1.79816846,68183.0,68182.0,0.002924]
[1722171575137,2.03283046,68183.0,68182.0,0.002924]
[1722171575546,2.05672437,68183.0,68182.0,0.002924]
[1722171575927,2.03369996,68183.0,68182.0,0.002924]
[1722171576230,1.83586408,68183.0,68182.0,0.002924]
[1722171576871,1.65663988,68183.0,68182.0,0.002924]
[1722171577223,1.78620139,68183.0,68182.0,0.002924]
[1722171577343,2.03490266,68183.0,68182.0,0.002924]
[1722171577542,1.98490266,68183.0,68182.0,0.002924]
[1722171577803,1.78620139,68183.0,68182.0,0.002924]
[1722171578255,1.83620139,68183.0,68182.0,0.002924]
[1722171578457,2.03294635,68183.0,68182.0,0.002924]
[1722171578810,1.83649735,68183.0,68182.0,0.002924]
[1722171579228,1.85952193,68183.0,68182.0,0.002924]
[1722171580451,1.83649735,68183.0,68182.0,0.002924]
[1722171581624,1.98675692,68183.0,68182.0,0.002924]
[1722171581842,1.93675692,68183.0,68182.0,0.002924]
[1722171582062,1.85689945,68183.0,68182.0,0.002924]
[1722171582271,1.98653322,68183.0,68182.0,0.002924]
[1722171582476,1.85689945,68183.0,68182.0,0.002924]
[1722171582764,1.98654812,68183.0,68182.0,0.002924]
[1722171583687,2.00957367,68183.0,68182.0,0.002924]
[1722171584148,1.98654812,68183.0,68182.0,0.002924]
[1722171585077,2.22121012,68183.0,68182.0,0.002924]
[1722171585282,2.09156145,68183.0,68182.0,0.002924]
[1722171585494,2.22165027,68183.0,68182.0,0.002924]
[1722171586488,1.79742788,68182.0,68181.0,8.51947044]
[1722171586682,2.76277627,68182.0,68181.0,8.51947044]
[1722171587321,2.76277627,68182.0,68181.0,8.49013644]
[1722171587539,2.78580287,68182.0,68181.0,8.37280044]
[1722171587700,2.79680287,68182.0,68181.0,8.37380044]
[1722171587861,2.74680287,68182.0,68181.0,8.37380044]
[1722171588059,2.78580287,68182.0,68181.0,8.37280044]
[1722171588267,2.78580287,68182.0,68181.0,8.31513244]
[1722171588268,2.79880287,68182.0,68181.0,8.31513244]
[1722171588494,2.78577627,68182.0,68181.0,8.31513244]
[1722171588696,2.78577627,68182.0,68181.0,8.09479844]
[1722171589082,2.77577627,68182.0,68181.0,8.09479844]
[1722171589282,2.78977627,68182.0,68181.0,8.09479844]
[1722171591543,2.78977627,68182.0,68181.0,8.02735314]
[1722171591741,2.81328738,68182.0,68181.0,8.02735314]
[1722171591961,2.79026046,68182.0,68181.0,8.02735314]
[1722171592173,2.79042474,68182.0,68181.0,8.02735314]
[1722171593435,2.79042474,68182.0,68181.0,7.90035114]
[1722171593839,2.93875402,68182.0,68181.0,7.90035114]
[1722171594199,2.79042474,68182.0,68181.0,7.84168314]
[1722171594400,2.93875123,68182.0,68181.0,7.78301514]
[1722171594959,2.65968745,68182.0,68181.0,7.72434714]
[1722171595197,2.93866464,68182.0,68181.0,7.66567914]
[1722171595371,2.96169156,68182.0,68181.0,7.66567914]
[1722171595713,2.93866464,68182.0,68181.0,7.66567914]
[1722171597314,2.78840507,68182.0,68181.0,7.66567914]
[1722171597483,2.64007858,68182.0,68181.0,7.66567914]
[1722171597851,2.50942788,68182.0,68181.0,7.66567914]
[1722171598049,2.64015181,68182.0,68181.0,7.66567914]
[1722171598308,2.63956329,68182.0,68181.0,7.66567914]
[1722171598486,2.66259024,68182.0,68181.0,7.66567914]
[1722171598972,2.63956329,68182.0,68181.0,7.66567914]
[1722171599174,2.78789056,68182.0,68181.0,7.66567914]
[1722171600446,2.93815013,68182.0,68181.0,7.66567914]
[1722171601035,2.65968745,68182.0,68181.0,7.54029141]
[1722171601237,2.78993618,68182.0,68181.0,7.54029141]
[1722171601475,2.7082452,68182.0,68181.0,7.51389141]
[1722171601622,2.7905944,68182.0,68181.0,7.51389141]
[1722171602216,2.64033483,68182.0,68181.0,7.51389141]
[1722171603636,2.64076655,68182.0,68181.0,7.51389141]
[1722171605176,2.59076655,68182.0,68181.0,7.51389141]
[1722171605401,2.64076655,68182.0,68181.0,7.51389141]
[1722171607072,2.64107233,68182.0,68181.0,7.51389141]
[1722171607447,2.7913319,68182.0,68181.0,7.51389141]
[1722171610154,2.79105624,68182.0,68181.0,7.51389141]
[1722171611158,2.81408262,68182.0,68181.0,7.51389141]
[1722171611473,2.67118262,68182.0,68181.0,7.51389141]
[1722171611733,2.49789667,68182.0,68181.0,7.51389141]
[1722171613242,2.36652788,68182.0,68181.0,7.51389141]
[1722171613446,2.49902503,68182.0,68181.0,7.51389141]
[1722171613805,2.49902482,68182.0,68181.0,7.51389141]
[1722171614543,2.57962482,68182.0,68181.0,7.51389141]
[1722171614747,2.64522482,68182.0,68181.0,7.51389141]
[1722171615051,2.6682511,68182.0,68181.0,7.51389141]
[1722171615447,2.81851067,68182.0,68181.0,7.51389141]
[1722171616305,3.05695812,68182.0,68181.0,7.51389141]
[1722171616510,2.81849376,68182.0,68181.0,7.51389141]
[1722171618092,2.67229376,68182.0,68181.0,7.51389141]
[1722171618857,1.38850331,68182.0,68181.0,7.57619141]
[1722171619100,1.38850331,68182.0,68181.0,7.65859141]
[1722171619420,1.44467591,68182.0,68181.0,7.51389141]
[1722171619618,1.46329545,68182.0,68181.0,7.51389141]
[1722171619857,1.59422757,68182.0,68181.0,7.51389141]
[1722171619992,1.74042757,68182.0,68181.0,7.51389141]
[1722171620532,1.97509357,68182.0,68181.0,7.51389141]
[1722171620674,1.99802024,68182.0,68181.0,7.51389141]
[1722171621083,1.98502024,68182.0,68181.0,7.51289141]
[1722171621691,1.97102024,68182.0,68181.0,7.51289141]
[1722171621936,1.98502024,68182.0,68181.0,7.51289141]
[1722171622273,1.99902024,68182.0,68181.0,7.51289141]
[1722171622398,1.98502024,68182.0,68181.0,7.51289141]
[1722171622599,2.00804611,68182.0,68181.0,7.51289141]
[1722171622805,1.89111399,68182.0,68181.0,7.51289141]
[1722171623019,2.02284141,68182.0,68181.0,7.51289141]
[1722171623646,1.99981554,68182.0,68181.0,7.51289141]
[1722171625980,1.78748812,68182.0,68181.0,7.51289141]
[1722171626208,1.91930279,68182.0,68181.0,7.51289141]
[1722171626383,1.61903679,68182.0,68181.0,7.51289141]
[1722171626589,1.58727003,68182.0,68181.0,7.65379141]
[1722171626808,1.58652867,68182.0,68181.0,7.65379141]
[1722171627201,1.15491234,68182.0,68181.0,7.65379141]
[1722171627643,1.13191234,68182.0,68181.0,7.65379141]
[1722171628431,1.15493775,68182.0,68181.0,7.65379141]
[1722171628848,1.17793775,68182.0,68181.0,7.65379141]
[1722171629263,0.82087288,68182.0,68181.0,7.65379141]
[1722171630794,0.87076968,68182.0,68181.0,7.65379141]
[1722171631030,0.87976968,68182.0,68181.0,7.65379141]
[1722171631418,0.94069635,68182.0,68181.0,7.65379141]
[1722171631646,0.86776968,68182.0,68181.0,7.65379141]
[1722171631765,0.84276968,68182.0,68181.0,7.65379141]
[1722171631960,0.85276968,68182.0,68181.0,7.65379141]
[1722171632182,0.82974427,68182.0,68181.0,7.65379141]
[1722171632401,0.82294865,68182.0,68181.0,7.65379141]
[1722171632606,0.97138991,68182.0,68181.0,7.65379141]
[1722171632823,0.69032847,68182.0,68181.0,7.65379141]
[1722171633020,0.9724051,68182.0,68181.0,7.65379141]
[1722171633405,0.82396384,68182.0,68181.0,7.65379141]
[1722171634094,0.82389384,68182.0,68181.0,7.65379141]
[1722171634924,0.8248897,68182.0,68181.0,7.65379141]
[1722171635473,0.84791371,68182.0,68181.0,7.65379141]
[1722171635811,0.8248897,68182.0,68181.0,7.65379141]
[1722171637176,0.82504832,68182.0,68181.0,7.65379141]
[1722171637389,0.82304832,68182.0,68181.0,7.65379141]
[1722171637732,0.82404832,68182.0,68181.0,7.65379141]
[1722171638180,0.82304832,68182.0,68181.0,7.65379141]
[1722171638899,0.73883296,68182.0,68181.0,7.65379141]
[1722171639282,0.82243348,68182.0,68181.0,7.65379141]
[1722171639476,1.05709948,68182.0,68181.0,7.65379141]
[1722171641578,0.82243348,68182.0,68181.0,7.65379141]
[1722171642024,0.68825847,68182.0,68181.0,7.65379141]
[1722171642200,0.32561456,68182.0,68181.0,7.65379141]
[1722171642415,0.42436037,68182.0,68181.0,7.65379141]
[1722171642614,0.76191775,68182.0,68181.0,7.65379141]
[1722171642817,0.8706638,68182.0,68181.0,7.65379141]
[1722171643583,0.73889388,68182.0,68181.0,7.65379141]
[1722171644013,0.82249554,68182.0,68181.0,7.65379141]
[1722171644618,0.82243518,68182.0,68181.0,7.65379141]
[1722171645202,0.77191459,68182.0,68181.0,7.65379141]
[1722171645403,0.82254699,68182.0,68181.0,7.65379141]
[1722171646147,0.8455707,68182.0,68181.0,7.65379141]
[1722171648491,0.71128218,68182.0,68181.0,7.65379141]
[1722171648690,0.84516405,68182.0,68181.0,7.65379141]
[1722171650659,1.07983005,68182.0,68181.0,7.65379141]
[1722171651514,0.84516405,68182.0,68181.0,7.65379141]
[1722171651733,0.7950125,68182.0,68181.0,7.65379141]
[1722171651884,0.84572261,68182.0,68181.0,7.65379141]
[1722171653111,1.08038861,68182.0,68181.0,7.65379141]
[1722171654242,1.08028594,68182.0,68181.0,7.65379141]
[1722171654407,1.07928594,68182.0,68181.0,7.65379141]
[1722171654617,1.07928594,68182.0,68181.0,7.51289141]
[1722171654618,1.38687861,68182.0,68181.0,7.51289141]
[1722171654796,1.52887861,68182.0,68181.0,7.51289141]
[1722171655166,1.60807749,68182.0,68181.0,7.51289141]
[1722171655372,1.60607749,68182.0,68181.0,7.51289141]
[1722171655542,1.58305378,68182.0,68181.0,7.51289141]
[1722171655839,1.73431335,68182.0,68181.0,7.51289141]
[1722171656141,1.5038549,68182.0,68181.0,7.51289141]
[1722171656516,1.5128549,68182.0,68181.0,7.51289141]
[1722171656880,1.5178549,68182.0,68181.0,7.51289141]
[1722171657083,1.59705378,68182.0,68181.0,7.51289141]
[1722171657404,1.59205378,68182.0,68181.0,7.51289141]
[1722171657616,1.80826449,68182.0,68181.0,7.51289141]
[1722171657816,1.81826449,68182.0,68181.0,7.51289141]
[1722171658239,1.52269873,68182.0,68181.0,7.51289141]
[1722171658450,1.60189761,68182.0,68181.0,7.51289141]
[1722171658602,1.62492322,68182.0,68181.0,7.51289141]
[1722171659907,1.75215718,68182.0,68181.0,7.51289141]
[1722171660348,1.98682318,68182.0,68181.0,7.51289141]
[1722171660983,1.85264159,68182.0,68181.0,7.51289141]
[1722171661186,1.98832855,68182.0,68181.0,7.51289141]
[1722171661552,1.60339594,68182.0,68181.0,7.51289141]
[1722171661763,1.59339594,68182.0,68181.0,7.51289141]
[1722171662167,1.60739594,68182.0,68181.0,7.51289141]
[1722171662694,1.37919706,68182.0,68181.0,7.51289141]
[1722171662871,1.41622301,68182.0,68181.0,7.51289141]
[1722171663278,1.40222301,68182.0,68181.0,7.51289141]
[1722171663512,1.25254309,68182.0,68181.0,7.51289141]
[1722171663732,1.40247834,68182.0,68181.0,7.51289141]
[1722171664336,1.37945239,68182.0,68181.0,7.51289141]
[1722171664944,1.39345239,68182.0,68181.0,7.51289141]
[1722171665578,1.37945239,68182.0,68181.0,7.51289141]
[1722171665917,1.44465127,68182.0,68181.0,7.51289141]
[1722171666115,1.59491084,68182.0,68181.0,7.51289141]
[1722171666340,1.60491084,68182.0,68181.0,7.51289141]
[1722171666563,1.82135794,68182.0,68181.0,7.51289141]
[1722171666797,1.83235175,68182.0,68181.0,7.51289141]
[1722171666998,1.69301084,68182.0,68181.0,7.51289141]
[1722171667446,1.74571084,68182.0,68181.0,7.51289141]
[1722171667643,1.95872389,68182.0,68181.0,7.51289141]
[1722171667821,1.97272389,68182.0,68181.0,7.51289141]
[1722171668455,1.97072389,68182.0,68181.0,7.51289141]
[1722171668801,1.98372389,68182.0,68181.0,7.51289141]
[1722171669948,1.92040084,68182.0,68181.0,7.51289141]
[1722171670157,1.97302788,68182.0,68181.0,7.51289141]
[1722171670476,1.98702808,68182.0,68181.0,7.51289141]
[1722171671103,1.96400229,68182.0,68181.0,7.51289141]
[1722171672228,1.82776285,68182.0,68181.0,7.51289141]
[1722171672394,1.9635949,68182.0,68181.0,7.51289141]
[1722171673201,1.81294874,68182.0,68181.0,7.51289141]
[1722171673830,1.73374986,68182.0,68181.0,7.51289141]
[1722171674035,1.3929626,68182.0,68181.0,7.51289141]
[1722171674469,1.63248957,68182.0,68181.0,7.51289141]
[1722171674657,1.41598839,68182.0,68181.0,7.51289141]
[1722171675298,1.63248957,68182.0,68181.0,7.51289141]
[1722171675641,1.41598839,68182.0,68181.0,7.51289141]
[1722171676100,1.41598839,68182.0,68181.0,7.58929141]
[1722171676498,1.41585973,68182.0,68181.0,7.58929141]
[1722171677762,1.63235694,68182.0,68181.0,7.58929141]
[1722171677966,0.87360106,68182.0,68181.0,7.65319141]
[1722171678433,0.90050194,68182.0,68181.0,7.65319141]
[1722171679035,1.13516794,68182.0,68181.0,7.65319141]
[1722171679411,0.99985114,68182.0,68181.0,7.65319141]
[1722171679614,1.14414841,68182.0,68181.0,7.65319141]
[1722171680017,1.15449842,68182.0,68181.0,7.65319141]
[1722171680447,1.14049842,68182.0,68181.0,7.65319141]
[1722171680949,1.15149842,68182.0,68181.0,7.65319141]
[1722171682874,1.15159156,68182.0,68181.0,7.65319141]
[1722171683136,1.1746161,68182.0,68181.0,7.65319141]
[1722171684096,0.9399501,68182.0,68181.0,7.65319141]
[1722171685885,0.80420968,68182.0,68181.0,7.65319141]
[1722171686091,1.17453636,68182.0,68181.0,7.65319141]
[1722171687508,0.88994369,68182.0,68181.0,7.65319141]
[1722171687737,0.84391915,68182.0,68181.0,7.65319141]
[1722171687940,0.60925315,68182.0,68181.0,7.65319141]
[1722171689113,0.59825315,68182.0,68181.0,7.65319141]
[1722171689272,0.58733719,68182.0,68181.0,7.65319141]
[1722171689434,0.82400319,68182.0,68181.0,7.65319141]
[1722171689631,0.82404946,68182.0,68181.0,7.65319141]
[1722171689830,0.82204946,68182.0,68181.0,7.65319141]
[1722171690055,0.82104946,68182.0,68181.0,7.65319141]
[1722171690264,0.82204946,68182.0,68181.0,7.65319141]
[1722171690622,0.84407329,68182.0,68181.0,7.65319141]
[1722171691107,0.96949436,68182.0,68181.0,7.65319141]
[1722171691324,0.82104946,68182.0,68181.0,7.65319141]
[1722171691755,0.82080782,68182.0,68181.0,7.65319141]
[1722171692477,0.82090569,68182.0,68181.0,7.65319141]
[1722171693432,1.10549836,68182.0,68181.0,7.58929141]
[1722171693595,1.16048278,68182.0,68181.0,7.51289141]
[1722171694408,1.18350721,68182.0,68181.0,7.51289141]
[1722171694562,1.13149836,68182.0,68181.0,7.51289141]
[1722171695448,0.99785114,68182.0,68181.0,7.51289141]
[1722171695642,1.13085865,68182.0,68181.0,7.51289141]
[1722171696362,1.13485865,68182.0,68181.0,7.51289141]
[1722171697471,1.1347467,68182.0,68181.0,7.51289141]
[1722171698508,1.14356609,68182.0,68181.0,7.51289141]
[1722171698875,1.09377924,68182.0,68181.0,7.51289141]
[1722171699076,1.1438347,68182.0,68181.0,7.51289141]
[1722171699280,1.03369496,68182.0,68181.0,7.51289141]
[1722171699482,1.16668253,68182.0,68181.0,7.51289141]
[1722171699910,1.54404853,68182.0,68181.0,7.51289141]
[1722171700204,1.62324741,68182.0,68181.0,7.51289141]
[1722171700420,1.82467821,68182.0,68181.0,7.51289141]
[1722171701016,1.82167821,68182.0,68181.0,7.51289141]
[1722171701153,1.82767821,68182.0,68181.0,7.51289141]
[1722171701559,1.81767821,68182.0,68181.0,7.51289141]
[1722171701760,1.82867821,68182.0,68181.0,7.51289141]
[1722171701959,1.83045187,68182.0,68181.0,7.51289141]
[1722171703028,1.84045187,68182.0,68181.0,7.51289141]
[1722171703572,1.82945187,68182.0,68181.0,7.51289141]
[1722171703977,1.84045187,68182.0,68181.0,7.51289141]
[1722171704868,2.07511787,68182.0,68181.0,7.51289141]
[1722171705074,1.84045187,68182.0,68181.0,7.51289141]
[1722171705262,1.84066563,68182.0,68181.0,7.51289141]
[1722171706398,1.83066563,68182.0,68181.0,7.51289141]
[1722171706691,2.06833163,68182.0,68181.0,7.51289141]
[1722171706828,2.0593072,68182.0,68181.0,7.51289141]
[1722171708380,1.92433221,68182.0,68181.0,7.51289141]
[1722171708581,2.05941831,68182.0,68181.0,7.51289141]
[1722171709038,1.97536867,68182.0,68181.0,7.51289141]
[1722171709237,2.05941842,68182.0,68181.0,7.51289141]
[1722171709597,2.12882295,68182.0,68181.0,7.51289141]
[1722171709989,2.11482295,68182.0,68181.0,7.51289141]
[1722171710309,2.12384945,68182.0,68181.0,7.51289141]
[1722171710557,2.13784945,68182.0,68181.0,7.51289141]
[1722171710717,2.15184945,68182.0,68181.0,7.51289141]
[1722171711629,2.01676324,68182.0,68181.0,7.51289141]
[1722171711802,2.15207272,68182.0,68181.0,7.51289141]
[1722171714917,2.01676324,68182.0,68181.0,7.51289141]
[1722171715126,2.1522425,68182.0,68181.0,7.51289141]
[1722171715271,1.76897309,68182.0,68181.0,7.51289141]
[1722171715658,1.42484229,68182.0,68181.0,7.51289141]
[1722171715912,1.47484229,68182.0,68181.0,7.51289141]
[1722171716155,1.42484229,68182.0,68181.0,7.51289141]
[1722171717319,1.50404117,68182.0,68181.0,7.51289141]
[1722171718200,1.50475266,68182.0,68181.0,7.51289141]
[1722171718401,1.42555378,68182.0,68181.0,7.51289141]
[1722171718632,1.28936303,68182.0,68181.0,7.51289141]
[1722171718848,1.42554181,68182.0,68181.0,7.51289141]
[1722171719438,1.40251531,68182.0,68181.0,7.51289141]
[1722171722826,1.42554117,68182.0,68181.0,7.51289141]
[1722171723075,1.40251531,68182.0,68181.0,7.51289141]
[1722171723677,1.40364405,68182.0,68181.0,7.51289141]
[1722171726436,1.4266698,68182.0,68181.0,7.51289141]
[1722171726883,1.4266698,68182.0,68181.0,7.57769141]
[1722171726884,1.42652675,68182.0,68181.0,7.57769141]
[1722171727211,1.42652675,68182.0,68181.0,7.65339141]
[1722171727528,1.40349976,68182.0,68181.0,7.65339141]
[1722171729353,1.40335008,68182.0,68181.0,7.65339141]
[1722171730032,1.03167053,68182.0,68181.0,7.65339141]
[1722171730212,0.87517861,68182.0,68181.0,7.65339141]
[1722171730392,0.77517861,68182.0,68181.0,7.65339141]
[1722171730800,0.79820291,68182.0,68181.0,7.65339141]
[1722171731325,0.78420291,68182.0,68181.0,7.65339141]
[1722171731929,0.89820291,68182.0,68181.0,7.65339141]
[1722171732186,0.88420291,68182.0,68181.0,7.65339141]
[1722171732388,0.88020291,68182.0,68181.0,7.65339141]
[1722171732765,0.88920291,68182.0,68181.0,7.65339141]
[1722171733101,0.65453691,68182.0,68181.0,7.65339141]
[1722171733336,0.39687091,68182.0,68181.0,7.82419253]
[1722171733452,0.39703545,68182.0,68181.0,7.82419253]
[1722171733849,0.29728198,68182.0,68181.0,7.82419253]
[1722171734079,0.20226267,68182.0,68181.0,7.82419253]
[1722171734271,0.17923837,68182.0,68181.0,7.82419253]
[1722171734496,0.17123837,68182.0,68181.0,7.82419253]
[1722171734854,0.17023837,68182.0,68181.0,7.82419253]
[1722171735553,0.19323837,68182.0,68181.0,7.82419253]
[1722171736152,0.19423837,68182.0,68181.0,7.82419253]
[1722171736362,0.07690537,68182.0,68181.0,7.82419253]
[1722171736998,0.07752878,68182.0,68181.0,7.82419253]
[1722171737563,0.10055225,68182.0,68181.0,7.82419253]
[1722171738224,0.21788525,68182.0,68181.0,7.82419253]
[1722171738357,0.45255125,68182.0,68181.0,7.82419253]
[1722171738552,0.51528977,68182.0,68181.0,7.82419253]
[1722171738766,0.19501744,68182.0,68181.0,7.82419253]
[1722171739591,0.19506787,68182.0,68181.0,7.82419253]
[1722171739790,0.42973387,68182.0,68181.0,7.82419253]
[1722171740017,0.51554356,68182.0,68181.0,7.82419253]
[1722171740214,0.42973387,68182.0,68181.0,7.82419253]
[1722171740619,0.43073387,68182.0,68181.0,7.82419253]
[1722171740830,0.51657954,68182.0,68181.0,7.82419253]
[1722171741024,0.42973387,68182.0,68181.0,7.82419253]